[Event "8th Mersin Open 2024"]
[Site "Mersin"]
[Date "2024.11.14"]
[Round "7"]
[White "Tezcan, Alper"]
[Black "Yildiz, Serdar Murat"]
[Result "0-1"]
[ECO "B47"]
[WhiteElo "2002"]
[BlackElo "2201"]
[Annotator "RC"]
[PlyCount "58"]
[EventDate "2024.11.10"]
[EventType "swiss"]
[EventCountry "TUR"]
[SourceTitle "playchess.com"]
[Source "ChessBase"]
[SourceQuality "1"]
[TimeControl "5400+30"]

1. e4 {[%emt 0:01:00]} c5 {[%emt 0:01:00]} 2. Nf3 {[%emt 0:00:30]} e6 {[%emt 0:00:30]} 3. d4 {[%emt 0:00:30]} cxd4 {[%emt 0:00:00]} 4. Nxd4 {[%emt 0:00:00]} Nc6 {[%emt 0:00:00]} 5. Nc3 {[%emt 0:00:00]} Qc7 {[%emt 0:00:00]} 6. Qd3 {[%emt 0:00:00]} Nf6 {[%emt 0:00:00]} 7. Ndb5 {[%emt 0:00:00]} Qb8 {[%emt 0:00:00]} 8. Qg3 {[%emt 0:00:00]} d6 {[%emt 0:03:00]} 9. Be3 {[%emt 0:02:00]} a6 {[%emt 0:16:30]} 10. Nd4 {[%emt 0:00:30]} Be7 {[%emt 0:02:30]} 11. f3 {[%emt 0:08:30]} O-O {[%emt 0:01:30]} 12. O-O-O {[%emt 0:04:30]} Qc7 {[%emt 0:06:30]} 13. Qf2 {[%emt 0:14:30]} b5 {[%emt 0:04:30]} 14. Nxc6 {[%emt 0:07:30]} Qxc6 {[%emt 0:00:30]} 15. g4 {[%emt 0:00:30]} Bb7 {[%emt 0:00:30]} 16. g5 {[%emt 0:10:30]} Nd7 {[%emt 0:00:30]} 17. Ne2 {[%emt 0:07:30]} Rac8 {[%emt 0:08:30]} 18. Nd4 {[%emt 0:01:30]} Qc7 {[%emt 0:00:00]} 19. h4 {[%emt 0:10:30]} d5 {[%emt 0:11:00]} 20. Bh3 {[%emt 0:15:44]} Nc5 {[%emt 0:00:30]} 21. exd5 {[%emt 0:00:30]} Bxd5 {[%emt 0:00:30]} 22. Kb1 {[%emt 0:01:05]} Na4 {[%emt 0:04:30]} 23. Nf5 {[%emt 0:06:10]} Rfd8 {[%emt 0:25:15]} 24. Nxe7+ {[%emt 0:01:57]} Qxe7 {[%emt 0:00:02]} 25. Rd4 {[%emt 0:01:54]} b4 {[%emt 0:06:42]} 26. Rhd1 {[%emt 0:02:42]} Rb8 {[%emt 0:04:52]} 27. Ka1 {[%emt 0:01:21]} Qc5 {[%emt 0:01:27]} 28. Bf1 {[%emt 0:01:40]} Qa5 {[%emt 0:01:50]} 29. Bc4 {[%emt 0:01:51]} Bxc4 {[%emt 0:00:13]} 0-1

[Event "8th Mersin Open 2024"]
[Site "Mersin"]
[Date "2024.11.14"]
[Round "7"]
[White "Cakir, Mert"]
[Black "Orak, Yunus"]
[Result "1-0"]
[ECO "C54"]
[WhiteElo "1976"]
[BlackElo "1859"]
[Annotator "RC"]
[PlyCount "69"]
[EventDate "2024.11.10"]
[EventType "swiss"]
[EventCountry "TUR"]
[SourceTitle "playchess.com"]
[Source "ChessBase"]
[SourceQuality "1"]
[TimeControl "5400+30"]

1. e4 {[%emt 0:01:00]} e5 {[%emt 0:01:00]} 2. Nf3 {[%emt 0:00:30]} Nc6 {[%emt 0:00:00]} 3. Bc4 {[%emt 0:00:00]} Nf6 {[%emt 0:00:00]} 4. d3 {[%emt 0:00:00]} Bc5 {[%emt 0:00:30]} 5. c3 {[%emt 0:00:00]} d6 {[%emt 0:01:30]} 6. Nbd2 {[%emt 0:00:00]} a6 {[%emt 0:05:30]} 7. Bb3 {[%emt 0:02:30]} h6 {[%emt 0:01:30]} 8. h3 {[%emt 0:00:30]} Ba7 {[%emt 0:00:30]} 9. Nf1 {[%emt 0:00:30]} d5 {[%emt 0:00:30]} 10. Qe2 {[%emt 0:00:30]} dxe4 {[%emt 0:00:30]} 11. dxe4 {[%emt 0:00:30]} Qe7 {[%emt 0:00:30]} 12. Ng3 {[%emt 0:00:30]} Bd7 {[%emt 0:00:30]} 13. Be3 {[%emt 0:00:30]} O-O-O {[%emt 0:00:30]} 14. Bxa7 {[%emt 0:00:30]} Nxa7 {[%emt 0:00:30]} 15. O-O-O {[%emt 0:00:30]} Nb5 {[%emt 0:00:30]} 16. Qe3 {[%emt 0:00:30]} Kb8 {[%emt 0:00:30]} 17. Rhe1 {[%emt 0:00:30]} Nd6 {[%emt 0:00:30]} 18. Qc5 {[%emt 0:00:30]} Rhe8 {[%emt 0:00:30]} 19. Nd2 {[%emt 0:00:30]} Bc6 {[%emt 0:00:30]} 20. Bd5 {[%emt 0:00:30]} Bxd5 {[%emt 0:00:30]} 21. exd5 {[%emt 0:00:30]} e4 {[%emt 0:00:30]} 22. Nb3 {[%emt 0:00:30]} Nd7 {[%emt 0:00:30]} 23. Qb4 {[%emt 0:00:30]} f5 {[%emt 0:00:30]} 24. Na5 {[%emt 0:00:30]} Ne5 {[%emt 0:00:30]} 25. Nxf5 {[%emt 0:00:30]} Qg5+ {[%emt 0:00:30]} 26. Ne3 {[%emt 0:00:30]} Nb5 {[%emt 0:00:30]} 27. c4 {[%emt 0:00:30]} Nd3+ {[%emt 0:00:30]} 28. Rxd3 {[%emt 0:00:30]} exd3 {[%emt 0:00:30]} 29. Kb1 {[%emt 0:00:30]} c5 {[%emt 0:00:30]} 30. Qxc5 {[%emt 0:00:30]} d2 {[%emt 0:00:30]} 31. Rd1 {[%emt 0:00:30]} Rxe3 {[%emt 0:00:30]} 32. Qxe3 {[%emt 0:00:30]} Qg6+ {[%emt 0:00:30]} 33. Ka1 {[%emt 0:00:30]} Nd6 {[%emt 0:00:30]} 34. Qb6 {[%emt 0:00:30]} Re8 {[%emt 0:00:30]} 35. Nxb7 {[%emt 0:00:30]} 1-0

[Event "8th Mersin Open 2024"]
[Site "Mersin"]
[Date "2024.11.14"]
[Round "7"]
[White "Turkmen, Yusuf Cagan"]
[Black "Taavoni, Rahim"]
[Result "1/2-1/2"]
[ECO "C55"]
[WhiteElo "1942"]
[BlackElo "1958"]
[Annotator "RC"]
[PlyCount "42"]
[EventDate "2024.11.10"]
[EventType "swiss"]
[EventCountry "TUR"]
[SourceTitle "playchess.com"]
[Source "ChessBase"]
[SourceQuality "1"]
[TimeControl "5400+30"]

1. e4 {[%emt 0:01:00]} e5 {[%emt 0:01:00]} 2. Nf3 {[%emt 0:00:30]} Nc6 {[%emt 0:00:30]} 3. Bc4 {[%emt 0:00:30]} Nf6 {[%emt 0:00:00]} 4. d3 {[%emt 0:00:00]} Be7 {[%emt 0:02:00]} 5. O-O {[%emt 0:00:00]} d6 {[%emt 0:00:00]} 6. a4 {[%emt 0:00:00]} O-O {[%emt 0:00:00]} 7. Nc3 {[%emt 0:02:00]} h6 {[%emt 0:07:30]} 8. Bd2 {[%emt 0:00:30]} Kh8 {[%emt 0:00:30]} 9. a5 {[%emt 0:00:30]} a6 {[%emt 0:00:30]} 10. h3 {[%emt 0:00:30]} Ng8 {[%emt 0:00:30]} 11. Nd5 {[%emt 0:00:30]} f5 {[%emt 0:00:30]} 12. Bc3 {[%emt 0:00:30]} fxe4 {[%emt 0:00:30]} 13. dxe4 {[%emt 0:00:30]} Bf6 {[%emt 0:00:30]} 14. Nd2 {[%emt 0:00:30]} Bg5 {[%emt 0:00:30]} 15. Nf3 {[%emt 0:00:30]} Bf6 {[%emt 0:00:30]} 16. Nd2 {[%emt 0:00:30]} Bg5 {[%emt 0:00:30]} 17. Nf3 {[%emt 0:00:30]} Bf6 {[%emt 0:00:30]} 18. Nh2 {[%emt 0:00:30]} Bg5 {[%emt 0:00:30]} 19. Nf3 {[%emt 0:00:30]} Bf6 {[%emt 0:00:30]} 20. Nh2 {[%emt 0:00:30]} Bg5 {[%emt 0:00:30]} 21. Nf3 {[%emt 0:00:30]} Bf6 {[%emt 0:00:30]} 1/2-1/2

[Event "8th Mersin Open 2024"]
[Site "Mersin"]
[Date "2024.11.14"]
[Round "7"]
[White "Avsar, Gediz"]
[Black "Ilek, Kadir Bertan"]
[Result "1-0"]
[ECO "C63"]
[WhiteElo "1926"]
[BlackElo "1827"]
[Annotator "RC"]
[PlyCount "20"]
[EventDate "2024.11.10"]
[EventType "swiss"]
[EventCountry "TUR"]
[SourceTitle "playchess.com"]
[Source "ChessBase"]
[SourceQuality "1"]
[TimeControl "5400+30"]

1. e4 {[%emt 0:01:00]} e5 {[%emt 0:01:00]} 2. Nf3 {[%emt 0:00:30]} Nc6 {[%emt 0:00:00]} 3. Bb5 {[%emt 0:00:00]} f5 {[%emt 0:01:00]} 4. Nc3 {[%emt 0:00:00]} fxe4 {[%emt 0:00:30]} 5. Nxe4 {[%emt 0:00:00]} d5 {[%emt 0:00:30]} 6. Nxe5 {[%emt 0:09:00]} dxe4 {[%emt 0:00:30]} 7. Nxc6 {[%emt 0:00:30]} Qg5 {[%emt 0:00:30]} 8. Nd4+ {[%emt 0:00:30]} c6 {[%emt 0:00:30]} 9. Bf1 {[%emt 0:00:30]} Qe5 {[%emt 0:00:30]} 10. c3 {[%emt 0:00:30]} Nf6 {[%emt 0:00:30]} 1-0

[Event "8th Mersin Open 2024"]
[Site "Mersin"]
[Date "2024.11.14"]
[Round "7"]
[White "Oz, Ege"]
[Black "Yigit, Ahmet Yasir"]
[Result "0-1"]
[ECO "A04"]
[WhiteElo "1895"]
[BlackElo "1927"]
[Annotator "ChessBase"]
[PlyCount "39"]
[EventDate "2024.11.10"]
[EventType "swiss"]
[EventCountry "TUR"]
[SourceTitle "playchess.com"]
[Source "ChessBase"]
[SourceQuality "1"]
[TimeControl "5400+30"]

1. e4 {[%emt 0:01:00]} c5 {[%emt 0:12:00]} 2. Nf3 {[%emt 0:00:30]} Nc6 {[%emt 0:00:00]} 3. d3 {[%emt 0:00:00]} g6 {[%emt 0:00:00]} 4. g3 {[%emt 0:00:00]} Bg7 {[%emt 0:00:30]} 5. Bg2 {[%emt 0:00:00]} e6 {[%emt 0:00:30]} 6. O-O {[%emt 0:00:00]} Nge7 {[%emt 0:00:30]} 7. Re1 {[%emt 0:00:30]} O-O {[%emt 0:00:30]} 8. c3 {[%emt 0:00:30]} d5 {[%emt 0:00:30]} 9. e5 {[%emt 0:00:30]} Bd7 {[%emt 0:00:30]} 10. h4 {[%emt 0:00:30]} h6 {[%emt 0:00:30]} 11. Bf4 {[%emt 0:00:30]} Nf5 {[%emt 0:00:30]} 12. Nbd2 {[%emt 0:00:30]} f6 {[%emt 0:00:30]} 13. exf6 {[%emt 0:00:30]} Qxf6 {[%emt 0:00:30]} 14. Ne5 {[%emt 0:00:30]} Nxe5 {[%emt 0:00:30]} 15. Bxe5 {[%emt 0:00:30]} Qf7 {[%emt 0:00:30]} 16. Nf3 {[%emt 0:00:30]} Rfe8 {[%emt 0:00:30]} 17. Bxg7 {[%emt 0:00:30]} Qxg7 {[%emt 0:00:30]} 18. d4 {[%emt 0:00:30]} cxd4 {[%emt 0:00:30]} 19. cxd4 {[%emt 0:00:30]} Rac8 {[%emt 0:00:30]} 20. Ne5 {[%emt 0:00:30]} 0-1

[Event "8th Mersin Open 2024"]
[Site "Mersin"]
[Date "2024.11.14"]
[Round "7"]
[White "Herdem, Talha"]
[Black "Kurdas, Halil Ibrahim"]
[Result "0-1"]
[ECO "B23"]
[WhiteElo "1884"]
[BlackElo "1887"]
[Annotator "NA RC"]
[PlyCount "45"]
[EventDate "2024.11.10"]
[EventType "swiss"]
[EventCountry "TUR"]
[SourceTitle "playchess.com"]
[Source "ChessBase"]
[SourceQuality "1"]
[TimeControl "5400+30"]

1. e4 {[%emt 0:01:00]} c5 {[%emt 0:01:00]} 2. Nc3 {[%emt 0:00:30]} g6 {[%emt 0:00:00]} 3. d4 {[%emt 0:00:00]} cxd4 {[%emt 0:00:00]} 4. Qxd4 {[%emt 0:00:00]} Nf6 {[%emt 0:00:30]} 5. Bb5 {[%emt 0:00:00]} Bg7 {[%emt 0:03:30]} 6. e5 {[%emt 0:03:00]} Ng8 {[%emt 0:01:30]} 7. Nf3 {[%emt 0:00:30]} Nc6 {[%emt 0:00:30]} 8. Qf4 {[%emt 0:00:30]} Nh6 {[%emt 0:01:30]} 9. h4 {[%emt 0:00:30]} d5 {[%emt 0:00:30]} 10. Be3 {[%emt 0:00:30]} a6 {[%emt 0:00:30]} 11. O-O-O {[%emt 0:00:30]} axb5 {[%emt 0:00:30]} 12. Nxd5 {[%emt 0:00:30]} Qa5 {[%emt 0:00:30]} 13. Bb6 {[%emt 0:00:30]} Qxa2 {[%emt 0:00:30]} 14. Nc7+ {[%emt 0:00:30]} Kf8 {[%emt 0:00:30]} 15. Nxa8 {[%emt 0:00:30]} Qxa8 {[%emt 0:00:30]} 16. Kb1 {[%emt 0:00:30]} Ng4 {[%emt 0:00:30]} 17. Rhe1 {[%emt 0:00:30]} Be6 {[%emt 0:00:30]} 18. b3 {[%emt 0:00:30]} Kg8 {[%emt 0:00:30]} 19. Ng5 {[%emt 0:00:30]} Ncxe5 {[%emt 0:00:30]} 20. Nxe6 {[%emt 0:00:30]} Nd3 {[%emt 0:00:30]} 21. Qd4 {[%emt 0:00:30]} Bxd4 {[%emt 0:00:30]} 22. Nxd4 {[%emt 0:00:30]} Nxe1 {[%emt 0:00:30]} 23. Rxe1 {[%emt 0:00:30]} 0-1

[Event "8th Mersin Open 2024"]
[Site "Mersin"]
[Date "2024.11.14"]
[Round "7"]
[White "Karaalioglu, Zeynel Mansur"]
[Black "Baghirov, Mahammad"]
[Result "0-1"]
[ECO "C47"]
[WhiteElo "1875"]
[BlackElo "1875"]
[Annotator "NA RC"]
[PlyCount "85"]
[EventDate "2024.11.10"]
[EventType "swiss"]
[EventCountry "TUR"]
[SourceTitle "playchess.com"]
[Source "ChessBase"]
[SourceQuality "1"]
[TimeControl "5400+30"]

1. e4 {[%emt 0:01:00]} Nf6 {[%emt 0:02:00]} 2. Nf3 {[%emt 0:00:30]} e5 {[%emt 0:00:00]} 3. Nc3 {[%emt 0:00:30]} Nc6 {[%emt 0:00:00]} 4. a3 {[%emt 0:00:00]} Be7 {[%emt 0:00:30]} 5. d4 {[%emt 0:00:00]} exd4 {[%emt 0:00:30]} 6. Nxd4 {[%emt 0:00:30]} d6 {[%emt 0:00:00]} 7. Bb5 {[%emt 0:01:30]} Bd7 {[%emt 0:00:00]} 8. Bxc6 {[%emt 0:02:30]} bxc6 {[%emt 0:00:00]} 9. h3 {[%emt 0:01:30]} O-O {[%emt 0:00:00]} 10. O-O {[%emt 0:00:30]} Re8 {[%emt 0:00:30]} 11. Bf4 {[%emt 0:02:30]} Rb8 {[%emt 0:00:30]} 12. Rb1 {[%emt 0:00:30]} c5 {[%emt 0:00:30]} 13. Nb3 {[%emt 0:00:30]} Bf8 {[%emt 0:00:30]} 14. Re1 {[%emt 0:00:30]} Be6 {[%emt 0:00:30]} 15. Nd2 {[%emt 0:00:30]} Nd7 {[%emt 0:00:30]} 16. Nf3 {[%emt 0:00:30]} f6 {[%emt 0:00:30]} 17. Nd5 {[%emt 0:00:30]} Nb6 {[%emt 0:00:30]} 18. Nxb6 {[%emt 0:00:30]} axb6 {[%emt 0:00:30]} 19. b3 {[%emt 0:00:30]} b5 {[%emt 0:00:30]} 20. b4 {[%emt 0:00:30]} cxb4 {[%emt 0:00:30]} 21. axb4 {[%emt 0:00:30]} Qd7 {[%emt 0:00:30]} 22. Nd4 {[%emt 0:00:30]} Bf7 {[%emt 0:00:30]} 23. Qf3 {[%emt 0:00:30]} Ra8 {[%emt 0:00:30]} 24. h4 {[%emt 0:00:30]} Ra7 {[%emt 0:00:30]} 25. Qg3 {[%emt 0:00:30]} Kh8 {[%emt 0:00:30]} 26. Rbd1 {[%emt 0:00:30]} Bc4 {[%emt 0:00:30]} 27. c3 {[%emt 0:00:30]} Qf7 {[%emt 0:00:30]} 28. Qf3 {[%emt 0:00:30]} h5 {[%emt 0:00:30]} 29. Kh1 {[%emt 0:00:30]} Kh7 {[%emt 0:00:30]} 30. Rg1 {[%emt 0:00:30]} c5 {[%emt 0:00:30]} 31. bxc5 {[%emt 0:00:30]} dxc5 {[%emt 0:00:30]} 32. Nc6 {[%emt 0:00:30]} Be2 {[%emt 0:00:30]} 33. Qg3 {[%emt 0:00:30]} Bxd1 {[%emt 0:00:30]} 34. Rxd1 {[%emt 0:00:30]} Qe6 {[%emt 0:00:30]} 35. Nb8 {[%emt 0:00:30]} Qg4 {[%emt 0:00:30]} 36. f3 {[%emt 0:00:30]} Qxg3 {[%emt 0:00:30]} 37. Bxg3 {[%emt 0:00:30]} b4 {[%emt 0:00:30]} 38. cxb4 {[%emt 0:00:30]} cxb4 {[%emt 0:00:30]} 39. Rd5 {[%emt 0:00:30]} b3 {[%emt 0:00:30]} 40. Rb5 {[%emt 0:00:30]} b2 {[%emt 0:00:30]} 41. Kh2 {[%emt 0:00:30]} Ra3 {[%emt 0:00:30]} 42. Rxh5+ {[%emt 0:00:30]} Kg6 {[%emt 0:00:30]} 43. Rb5 {[%emt 0:00:30]} 0-1

[Event "8th Mersin Open 2024"]
[Site "Mersin"]
[Date "2024.11.14"]
[Round "7"]
[White "Ahmed Alhac, Muhammed"]
[Black "Norouzi Chenari, Parham"]
[Result "1/2-1/2"]
[ECO "D38"]
[WhiteElo "1832"]
[BlackElo "1899"]
[Annotator "NA RC"]
[PlyCount "27"]
[EventDate "2024.11.10"]
[EventType "swiss"]
[EventCountry "TUR"]
[SourceTitle "playchess.com"]
[Source "ChessBase"]
[SourceQuality "1"]
[TimeControl "5400+30"]

1. d4 {[%emt 0:04:00]} Nf6 {[%emt 0:01:00]} 2. c4 {[%emt 0:00:30]} e6 {[%emt 0:00:30]} 3. Nf3 {[%emt 0:00:00]} d5 {[%emt 0:00:00]} 4. Nc3 {[%emt 0:00:00]} Bb4 {[%emt 0:00:00]} 5. Bg5 {[%emt 0:00:30]} h6 {[%emt 0:00:00]} 6. Bxf6 {[%emt 0:03:30]} Qxf6 {[%emt 0:00:00]} 7. Qa4+ {[%emt 0:00:00]} Nc6 {[%emt 0:00:30]} 8. e3 {[%emt 0:01:00]} Bd7 {[%emt 0:01:30]} 9. Qc2 {[%emt 0:00:30]} O-O {[%emt 0:00:30]} 10. a3 {[%emt 0:00:30]} Bxc3+ {[%emt 0:00:30]} 11. bxc3 {[%emt 0:00:30]} dxc4 {[%emt 0:00:30]} 12. Bxc4 {[%emt 0:00:30]} e5 {[%emt 0:00:30]} 13. O-O {[%emt 0:00:30]} Rae8 {[%emt 0:00:30]} 14. Bb5 {[%emt 0:00:30]} 1/2-1/2

[Event "8th Mersin Open 2024"]
[Site "Mersin"]
[Date "2024.11.14"]
[Round "7"]
[White "Ghanbarpour, Mahan"]
[Black "Kilic, Cihan"]
[Result "1-0"]
[ECO "A17"]
[WhiteElo "1803"]
[BlackElo "1894"]
[Annotator "NA RC"]
[PlyCount "54"]
[EventDate "2024.11.10"]
[EventType "swiss"]
[EventCountry "TUR"]
[SourceTitle "playchess.com"]
[Source "ChessBase"]
[SourceQuality "1"]
[TimeControl "5400+30"]

1. Nf3 {[%emt 0:01:00]} d5 {[%emt 0:01:00]} 2. e3 {[%emt 0:00:00]} Nf6 {[%emt 0:00:30]} 3. c4 {[%emt 0:00:00]} e6 {[%emt 0:00:30]} 4. Nc3 {[%emt 0:00:00]} b6 {[%emt 0:01:30]} 5. cxd5 {[%emt 0:00:00]} exd5 {[%emt 0:00:00]} 6. g3 {[%emt 0:00:30]} Bb7 {[%emt 0:01:00]} 7. Bg2 {[%emt 0:00:00]} Nbd7 {[%emt 0:00:30]} 8. O-O {[%emt 0:01:00]} Bd6 {[%emt 0:00:30]} 9. Qc2 {[%emt 0:02:30]} a6 $11 {[%emt 0:00:30]} 10. b3 {[%emt 0:03:30]} O-O {[%emt 0:00:30]} 11. Bb2 {[%emt 0:00:30]} c5 {[%emt 0:00:30]} 12. d4 {[%emt 0:00:30]} Rc8 {[%emt 0:00:30]} 13. Rac1 {[%emt 0:00:30]} Ne4 {[%emt 0:00:30]} 14. dxc5 {[%emt 0:00:30]} Ndxc5 {[%emt 0:00:30]} 15. Rfd1 {[%emt 0:00:30]} Nxc3 {[%emt 0:00:30]} 16. Qxc3 {[%emt 0:00:30]} Ne6 {[%emt 0:00:30]} 17. Qd2 {[%emt 0:00:30]} Rxc1 {[%emt 0:00:30]} 18. Rxc1 {[%emt 0:00:30]} a5 {[%emt 0:00:30]} 19. Nd4 {[%emt 0:00:30]} Qg5 {[%emt 0:00:30]} 20. Qd1 {[%emt 0:00:30]} Bc5 {[%emt 0:00:30]} 21. h4 {[%emt 0:00:30]} Qe7 {[%emt 0:00:30]} 22. Nf5 {[%emt 0:00:30]} Qd7 {[%emt 0:00:30]} 23. Qg4 {[%emt 0:00:30]} f6 {[%emt 0:00:30]} 24. Nxg7 {[%emt 0:00:30]} Qxg7 {[%emt 0:00:30]} 25. Qxe6+ {[%emt 0:00:30]} Kh8 {[%emt 0:00:30]} 26. Kh2 {[%emt 0:00:30]} h5 {[%emt 0:00:30]} 27. Qf5 {[%emt 0:00:30]} Qe7 {[%emt 0:00:30]} 1-0

[Event "8th Mersin Open 2024"]
[Site "Mersin"]
[Date "2024.11.14"]
[Round "7"]
[White "Arslan, Hazar"]
[Black "Doygun, Lena"]
[Result "0-1"]
[ECO "B00"]
[WhiteElo "1597"]
[BlackElo "1593"]
[Annotator "NA RC"]
[PlyCount "94"]
[EventDate "2024.11.10"]
[EventType "swiss"]
[EventCountry "TUR"]
[SourceTitle "playchess.com"]
[Source "ChessBase"]
[SourceQuality "1"]
[TimeControl "5400+30"]

1. e4 {[%emt 0:01:00]} Nc6 {[%emt 0:01:00]} 2. d4 {[%emt 0:00:30]} d5 {[%emt 0:00:00]} 3. e5 {[%emt 0:00:30]} Bf5 {[%emt 0:00:00]} 4. c3 {[%emt 0:00:30]} e6 {[%emt 0:00:30]} 5. Bd3 {[%emt 0:00:30]} Bxd3 {[%emt 0:03:30]} 6. Qxd3 {[%emt 0:00:30]} Qd7 {[%emt 0:01:30]} 7. Nd2 {[%emt 0:01:30]} f6 {[%emt 0:00:30]} 8. f4 {[%emt 0:00:30]} fxe5 {[%emt 0:03:30]} 9. fxe5 {[%emt 0:00:30]} O-O-O {[%emt 0:01:30]} 10. b4 {[%emt 0:01:30]} Be7 {[%emt 0:01:30]} 11. Nb3 {[%emt 0:03:30]} Nb8 {[%emt 0:04:30]} 12. a4 {[%emt 0:02:30]} Bh4+ {[%emt 0:00:30]} 13. g3 {[%emt 0:00:30]} Be7 {[%emt 0:01:30]} 14. b5 {[%emt 0:02:30]} h5 {[%emt 0:00:30]} 15. Nf3 {[%emt 0:03:30]} h4 {[%emt 0:01:30]} 16. gxh4 {[%emt 0:01:30]} Bxh4+ {[%emt 0:01:30]} 17. Nxh4 {[%emt 0:01:30]} Rxh4 {[%emt 0:00:30]} 18. Bg5 {[%emt 0:00:30]} Re4+ {[%emt 0:00:30]} 19. Kd1 {[%emt 0:00:30]} Rf8 {[%emt 0:01:30]} 20. Nc5 {[%emt 0:00:30]} Qf7 {[%emt 0:00:30]} 21. Nxe4 {[%emt 0:00:30]} dxe4 {[%emt 0:00:30]} 22. Qe2 {[%emt 0:00:00]} Qg6 {[%emt 0:01:30]} 23. Be3 {[%emt 0:01:00]} Ne7 {[%emt 0:00:30]} 24. Rg1 {[%emt 0:00:30]} Qh7 {[%emt 0:00:30]} 25. Kd2 {[%emt 0:04:30]} Nd5 {[%emt 0:02:30]} 26. Raf1 {[%emt 0:00:30]} Rd8 {[%emt 0:07:30]} 27. Rg2 {[%emt 0:04:30]} Nd7 {[%emt 0:01:30]} 28. Qg4 {[%emt 0:03:30]} Kb8 {[%emt 0:05:30]} 29. Qxg7 {[%emt 0:01:30]} Qh3 {[%emt 0:03:30]} 30. Rg3 {[%emt 0:04:30]} Qxf1 {[%emt 0:00:30]} 31. Qxd7 {[%emt 0:00:30]} Qd3+ {[%emt 0:01:30]} 32. Ke1 {[%emt 0:00:00]} Qxe3+ {[%emt 0:00:30]} 33. Rxe3 {[%emt 0:00:00]} Rxd7 {[%emt 0:00:30]} 34. Rxe4 {[%emt 0:00:30]} Nxc3 {[%emt 0:00:30]} 35. Rf4 {[%emt 0:00:30]} b6 {[%emt 0:00:30]} 36. Rf8+ {[%emt 0:00:30]} Kb7 {[%emt 0:00:30]} 37. Re8 {[%emt 0:00:00]} Rxd4 {[%emt 0:00:30]} 38. Rxe6 {[%emt 0:00:00]} Rh4 {[%emt 0:00:30]} 39. Rc6 {[%emt 0:00:30]} Nxa4 {[%emt 0:00:30]} 40. e6 {[%emt 0:00:00]} Nc5 {[%emt 0:00:30]} 41. e7 {[%emt 0:01:00]} Re4+ {[%emt 0:00:30]} 42. Kf2 {[%emt 0:00:00]} Rxe7 {[%emt 0:00:30]} 43. h4 {[%emt 0:00:00]} Rh7 {[%emt 0:00:00]} 44. Kg3 {[%emt 0:00:30]} a6 {[%emt 0:00:00]} 45. Kg4 {[%emt 0:00:00]} axb5 {[%emt 0:00:30]} 46. Rg6 {[%emt 0:00:00]} Nd3 {[%emt 0:00:30]} 47. Kg5 {[%emt 0:00:00]} b4 {[%emt 0:00:30]} 0-1

[Event "8th Mersin Open 2024"]
[Site "Mersin"]
[Date "2024.11.14"]
[Round "7"]
[White "Kocacik, Dogukan"]
[Black "Tawel, Ihab."]
[Result "1-0"]
[ECO "B78"]
[WhiteElo "1586"]
[BlackElo "1584"]
[Annotator "NA RC"]
[PlyCount "72"]
[EventDate "2024.11.10"]
[EventType "swiss"]
[EventCountry "TUR"]
[SourceTitle "playchess.com"]
[Source "ChessBase"]
[SourceQuality "1"]
[TimeControl "5400+30"]

1. e4 {[%emt 0:01:00]} c5 {[%emt 0:03:00]} 2. Nf3 {[%emt 0:00:00]} d6 {[%emt 0:00:30]} 3. d4 {[%emt 0:00:00]} cxd4 {[%emt 0:00:30]} 4. Nxd4 {[%emt 0:00:00]} Nf6 {[%emt 0:00:30]} 5. Bc4 {[%emt 0:00:00]} g6 {[%emt 0:00:30]} 6. f3 {[%emt 0:00:30]} Bg7 {[%emt 0:01:30]} 7. Nc3 {[%emt 0:00:30]} O-O {[%emt 0:00:00]} 8. Be3 {[%emt 0:00:30]} Nc6 {[%emt 0:00:00]} 9. Qd2 {[%emt 0:01:30]} Bd7 {[%emt 0:00:00]} 10. Nxc6 {[%emt 0:03:30]} Bxc6 {[%emt 0:02:00]} 11. O-O-O {[%emt 0:01:30]} a6 {[%emt 0:00:30]} 12. g4 {[%emt 0:00:30]} b5 {[%emt 0:03:30]} 13. Bb3 {[%emt 0:01:30]} a5 {[%emt 0:00:30]} 14. a3 {[%emt 0:03:30]} b4 {[%emt 0:04:30]} 15. Nb1 {[%emt 0:03:30]} bxa3 {[%emt 0:09:30]} 16. bxa3 {[%emt 0:02:30]} a4 {[%emt 0:00:30]} 17. Ba2 {[%emt 0:00:30]} Rb8 {[%emt 0:00:30]} 18. Bd4 {[%emt 0:01:30]} Qc7 {[%emt 0:12:30]} 19. g5 {[%emt 0:03:30]} Bxe4 {[%emt 0:20:30]} 20. fxe4 {[%emt 0:16:30]} Nxe4 {[%emt 0:00:30]} 21. Qe3 {[%emt 0:00:30]} Qb7 {[%emt 0:00:30]} 22. Rde1 {[%emt 0:12:30]} Bxd4 {[%emt 0:03:30]} 23. Qxd4 {[%emt 0:01:30]} Nxg5 {[%emt 0:00:30]} 24. Nd2 {[%emt 0:03:30]} Rfc8 {[%emt 0:00:30]} 25. Rhf1 {[%emt 0:01:30]} Qc6 {[%emt 0:06:30]} 26. Bc4 {[%emt 0:02:30]} e5 {[%emt 0:11:23]} 27. Qd3 {[%emt 0:08:30]} Ne6 {[%emt 0:06:36]} 28. Rf6 {[%emt 0:03:30]} Re8 {[%emt 0:03:23]} 29. Ne4 {[%emt 0:00:30]} Rbd8 {[%emt 0:04:41]} 30. Bb5 {[%emt 0:02:30]} Qb6 {[%emt 0:01:14]} 31. Bxe8 {[%emt 0:00:30]} Rxe8 {[%emt 0:00:03]} 32. Qxd6 {[%emt 0:00:30]} Qa5 {[%emt 0:00:10]} 33. Ref1 {[%emt 0:00:00]} Nf4 {[%emt 0:00:15]} 34. R6xf4 {[%emt 0:00:00]} exf4 {[%emt 0:00:58]} 35. Nf6+ {[%emt 0:00:30]} Kh8 {[%emt 0:00:30]} 36. Nxe8 {[%emt 0:00:00]} Qd8 {[%emt 0:00:00]} 1-0

[Event "8th Mersin Open 2024"]
[Site "Mersin"]
[Date "2024.11.14"]
[Round "7"]
[White "Yalcin, Enes Furkan"]
[Black "Ozturk, Yucel Mert"]
[Result "0-1"]
[ECO "A13"]
[WhiteElo "1585"]
[BlackElo "1545"]
[Annotator "NA RC"]
[PlyCount "50"]
[EventDate "2024.11.10"]
[EventType "swiss"]
[EventCountry "TUR"]
[SourceTitle "playchess.com"]
[Source "ChessBase"]
[SourceQuality "1"]
[TimeControl "5400+30"]

1. c4 e6 {[%emt 0:01:00]} 2. Nf3 {[%emt 0:01:30]} Nf6 {[%emt 0:00:00]} 3. d3 {[%emt 0:00:30]} d5 {[%emt 0:01:00]} 4. cxd5 {[%emt 0:00:30]} exd5 {[%emt 0:00:30]} 5. Bg5 {[%emt 0:00:30]} Be7 {[%emt 0:00:30]} 6. g3 {[%emt 0:00:30]} b6 {[%emt 0:01:30]} 7. Bg2 {[%emt 0:00:00]} Bb7 {[%emt 0:00:30]} 8. Nbd2 {[%emt 0:01:00]} Nbd7 {[%emt 0:01:30]} 9. Rc1 {[%emt 0:01:30]} c5 {[%emt 0:01:30]} 10. d4 {[%emt 0:00:00]} O-O {[%emt 0:02:30]} 11. O-O {[%emt 0:00:00]} Ne4 {[%emt 0:04:30]} 12. Bxe7 {[%emt 0:01:30]} Qxe7 {[%emt 0:00:00]} 13. dxc5 {[%emt 0:01:30]} Ndxc5 {[%emt 0:02:00]} 14. Nd4 {[%emt 0:00:30]} Rfe8 {[%emt 0:05:30]} 15. N2f3 {[%emt 0:08:30]} Nd6 {[%emt 0:12:30]} 16. e3 {[%emt 0:03:30]} Ba6 {[%emt 0:09:30]} 17. Ne2 {[%emt 0:04:30]} Nd3 {[%emt 0:12:30]} 18. Rc2 {[%emt 0:08:30]} Ne4 {[%emt 0:00:30]} 19. Ned4 {[%emt 0:13:30]} Nb4 {[%emt 0:04:30]} 20. Re1 {[%emt 0:01:30]} Nxc2 {[%emt 0:01:30]} 21. Qxc2 {[%emt 0:00:30]} Rac8 {[%emt 0:02:30]} 22. Qa4 {[%emt 0:01:30]} Nc5 {[%emt 0:04:30]} 23. Qa3 {[%emt 0:04:30]} Qd7 {[%emt 0:08:30]} 24. b3 {[%emt 0:11:30]} Bb7 {[%emt 0:06:17]} 25. Qxa7 {[%emt 0:07:30]} Qd8 {[%emt 0:03:09]} 0-1